fUSD/lending_fUSD_20260529
["ID","MTS","AMOUNT","RATE_DAILY","PERIOD"]
[423305451,1780044640000,-500.0,0.00013699,2]
[423305452,1780044640000,-500.0,0.00013699,2]
[423305453,1780044640000,-500.0,0.00013699,2]
[423305455,1780044640000,-9711.81931732,0.00013768,2]
[423305457,1780044640000,-150.0,0.00013787,2]
[423305464,1780044640000,-202.86401675,0.00014104,2]
[423305456,1780044640000,-11500.77660661,0.0001377,2]
[423305460,1780044640000,-250.0,0.00013807,2]
[423305459,1780044640000,-166.87,0.00013801,2]
[423305461,1780044640000,-1680.0,0.00013918,2]
[423305462,1780044640000,-11500.77660661,0.00014053,2]
[423305466,1780044640000,-150.0,0.00014237,2]
[423305463,1780044640000,-150.0,0.00014087,2]
[423305467,1780044640000,-151.0,0.00014249,2]
[423305472,1780044640000,-350.0,0.0001433,2]
[423305458,1780044640000,-151.67,0.00013801,2]
[423305491,1780044640000,-25000.0,0.00014794,3]
[423305527,1780044640000,-1128.5658029,0.0001499,2]
[423305490,1780044640000,-25000.0,0.00014786,3]
[423305515,1780044640000,-5000.0,0.00014927,2]
[423305510,1780044640000,-3787.0,0.000149,5]
[423305516,1780044640000,-10000.0,0.00014952,2]
[423305518,1780044640000,-728.72845236,0.0001498,2]
[423305519,1780044640000,-150.0,0.00014985,2]
[423305517,1780044640000,-433.0,0.00014956,2]
[423305520,1780044640000,-222.85455466,0.00014986,2]
[423305522,1780044640000,-158.72318336,0.00014986,2]
[423305511,1780044640000,-3032.0,0.000149,5]
[423305525,1780044640000,-18861.5786202,0.0001499,2]
[423305521,1780044640000,-279.43620478,0.00014986,2]
[423305526,1780044640000,-1223438.0123452,0.0001499,2]
[423305528,1780044640000,-8843.7850048,0.0001499,2]
[423305529,1780044640000,-90139.81295059,0.0001499,2]
[423305530,1780044640000,-744.8,0.0001499,2]
[423305531,1780044640000,-174.55166491,0.0001499,2]
[423305532,1780044640000,-325.88833509,0.0001499,2]
[423305487,1780044640000,-3134.02970953,0.00014756,2]
[423305524,1780044640000,-216845.4889248,0.0001499,2]
[423305513,1780044640000,-11500.77660661,0.000149,2]
[423305523,1780044640000,-234.93648486,0.00014986,2]
[423305512,1780044640000,-3100.0,0.000149,5]
[423305495,1780044640000,-25000.0,0.00014821,3]
[423305514,1780044640000,-9711.81931732,0.000149,2]
[423305492,1780044640000,-3100.0,0.000148,5]
[423305493,1780044640000,-25000.0,0.00014803,3]
[423305496,1780044640000,-25000.0,0.0001483,3]
[423305497,1780044640000,-25000.0,0.00014838,3]
[423305494,1780044640000,-25000.0,0.00014812,3]
[423305501,1780044640000,-25000.0,0.00014865,3]
[423305504,1780044640000,-163.0,0.0001488,2]
[423305498,1780044640000,-25000.0,0.00014847,3]
[423305502,1780044640000,-25000.0,0.00014874,3]
[423305509,1780044640000,-14943.04094919,0.000149,3]
[423305503,1780044640000,-1433.0,0.00014877,2]
[423305506,1780044640000,-200.0,0.0001488,2]
[423305507,1780044640000,-25000.0,0.00014882,3]
[423305508,1780044640000,-25000.0,0.00014891,3]
[423305500,1780044640000,-25000.0,0.00014856,3]
[423305499,1780044640000,-133167.39768901,0.0001485,2]
[423305505,1780044640000,-1000.0,0.0001488,2]
[423305565,1780044641000,-1000.0,0.00015,2]
[423305558,1780044641000,-1000.0,0.00015,2]
[423305561,1780044641000,-1000.0,0.00015,2]
[423305560,1780044641000,-1000.0,0.00015,2]
[423305562,1780044641000,-1000.0,0.00015,2]
[423305556,1780044641000,-1000.0,0.00015,2]
[423305564,1780044641000,-1000.0,0.00015,2]
[423305563,1780044641000,-1000.0,0.00015,2]
[423305575,1780044641000,-1220.315358,0.00015,2]
[423305568,1780044641000,-1000.0,0.00015,2]
[423305566,1780044641000,-1000.0,0.00015,2]
[423305570,1780044641000,-1000.0,0.00015,2]
[423305572,1780044641000,-1220.315358,0.00015,2]
[423305571,1780044641000,-1127.8501286,0.00015,2]
[423305573,1780044641000,-1220.315358,0.00015,2]
[423305574,1780044641000,-1220.315358,0.00015,2]
[423305559,1780044641000,-1000.0,0.00015,2]
[423305567,1780044641000,-1000.0,0.00015,2]
[423305557,1780044641000,-1000.0,0.00015,2]
[423305535,1780044641000,-372.60927676,0.0001499,2]
[423305555,1780044641000,-1000.0,0.00015,2]
[423305577,1780044641000,-1220.315358,0.00015,2]
[423305537,1780044641000,-728.72845236,0.0001499,2]
[423305536,1780044641000,-123391.51791055,0.0001499,2]
[423305538,1780044641000,-151.0,0.0001499,2]
[423305539,1780044641000,-151.0,0.0001499,2]
[423305541,1780044641000,-192.4596493,0.00014999,2]
[423305540,1780044641000,-169.465949,0.00014997,2]
[423305542,1780044641000,-1691931.89189846,0.00015,2]
[423305543,1780044641000,-3532912.66308287,0.00015,2]
[423305544,1780044641000,-351.46096074,0.00015,2]
[423305545,1780044641000,-158.92283165,0.00015,2]
[423305547,1780044641000,-151.0,0.00015,2]
[423305546,1780044641000,-151.0,0.00015,2]
[423305548,1780044641000,-151.0,0.00015,2]
[423305550,1780044641000,-151.0,0.00015,2]
[423305549,1780044641000,-151.0,0.00015,2]
[423305551,1780044641000,-151.0,0.00015,2]
[423305554,1780044641000,-200.0,0.00015,2]
[423305552,1780044641000,-151.0,0.00015,2]
[423305553,1780044641000,-175.392384,0.00015,2]
[423305576,1780044641000,-1220.315358,0.00015,2]
[423305569,1780044641000,-1000.0,0.00015,2]
[423305580,1780044641000,-151.0,0.00015,2]
[423305599,1780044641000,-668.26,0.000151,14]
[423305608,1780044641000,-350.0,0.00015284,2]
[423305604,1780044641000,-159.41,0.00015228,2]
[423305609,1780044641000,-1517.64,0.000153,2]
[423305605,1780044641000,-151.67,0.00015228,2]
[423305606,1780044641000,-166.87,0.00015228,2]
[423305607,1780044641000,-15000.0,0.00015252,2]
[423305610,1780044641000,-200.0,0.00015301,2]
[423305613,1780044641000,-1124.0,0.00015324,2]
[423305614,1780044641000,-200.0,0.00015376,2]
[423305611,1780044641000,-2351.0,0.0001531,2]
[423305615,1780044641000,-4968.77522196,0.000154,2]
[423305616,1780044641000,-3797.27835543,0.00015412,2]
[423305620,1780044641000,-3797.27835543,0.00015457,2]
[423305619,1780044641000,-200.0,0.00015455,2]
[423305618,1780044641000,-3797.27835543,0.00015443,2]
[423305617,1780044641000,-3797.27835543,0.00015433,2]
[423305621,1780044641000,-4968.77522196,0.000155,2]
[423305579,1780044641000,-1220.315358,0.00015,2]
[423305602,1780044641000,-4968.77522196,0.000152,2]
[423305601,1780044641000,-331.22730139,0.00015191,2]
[423305612,1780044641000,-350.0,0.00015321,2]
[423305600,1780044641000,-200.0,0.0001515,2]
[423305581,1780044641000,-151.0,0.00015,2]
[423305603,1780044641000,-1372.39,0.000152,2]
[423305578,1780044641000,-1220.315358,0.00015,2]
[423305583,1780044641000,-151.0,0.00015,2]
[423305582,1780044641000,-151.0,0.00015,2]
[423305585,1780044641000,-150.0,0.00015,2]
[423305587,1780044641000,-151.0,0.00015,2]
[423305586,1780044641000,-151.0,0.00015,2]
[423305589,1780044641000,-4733.48128027,0.00015024,2]
[423305584,1780044641000,-150.0,0.00015,2]
[423305590,1780044641000,-10000.0,0.00015065,2]
[423305591,1780044641000,-1420.150098,0.00015068,2]
[423305593,1780044641000,-1420.150098,0.00015068,2]
[423305592,1780044641000,-1420.150098,0.00015068,2]
[423305594,1780044641000,-1420.150098,0.00015068,2]
[423305597,1780044641000,-1420.150098,0.00015068,2]
[423305596,1780044641000,-1420.150098,0.00015068,2]
[423305588,1780044641000,-151.0,0.00015,2]
[423305598,1780044641000,-1420.150098,0.00015068,2]
[423305595,1780044641000,-1420.150098,0.00015068,2]
[423305661,1780044642000,-2513.0,0.000159,2]
[423305658,1780044642000,-150.0,0.000159,2]
[423305660,1780044642000,-1074.0,0.000159,2]
[423305657,1780044642000,-150.0,0.000159,2]
[423305653,1780044642000,-200.0,0.00015872,2]
[423305656,1780044642000,-150.0,0.000159,2]
[423305651,1780044642000,-1000.0,0.00015872,2]
[423305655,1780044642000,-153.78,0.000159,14]
[423305663,1780044642000,-285.0,0.000159,2]
[423305654,1780044642000,-302.65,0.00015874,2]
[423305659,1780044642000,-670.93,0.000159,2]
[423305665,1780044642000,-418.0,0.000159,2]
[423305675,1780044642000,-300.0,0.00016,2]
[423305667,1780044642000,-350.0,0.00015908,2]
[423305662,1780044642000,-1007.0,0.000159,2]
[423305666,1780044642000,-3797.27835543,0.00015901,2]
[423305677,1780044642000,-200.0,0.00016,2]
[423305670,1780044642000,-215.817228,0.00015942,2]
[423305672,1780044642000,-165.52,0.00015988,2]
[423305671,1780044642000,-3797.27835543,0.00015981,2]
[423305673,1780044642000,-3797.27835543,0.00015991,2]
[423305678,1780044642000,-709.45851209,0.00016087,2]
[423305679,1780044642000,-1124.0,0.0001613,2]
[423305676,1780044642000,-151.0,0.00016,4]
[423305652,1780044642000,-500.0,0.00015872,2]
[423305664,1780044642000,-932.0,0.000159,2]
[423305650,1780044642000,-350.0,0.00015823,2]
[423305628,1780044642000,-3797.27835543,0.00015568,2]
[423305648,1780044642000,-2272.77312855,0.00015807,2]
[423305623,1780044642000,-3797.27835543,0.00015508,2]
[423305622,1780044642000,-350.0,0.00015506,2]
[423305624,1780044642000,-285.04162188,0.00015513,2]
[423305625,1780044642000,-3797.27835543,0.00015543,2]
[423305626,1780044642000,-350.0,0.00015545,2]
[423305629,1780044642000,-167.11,0.00015584,2]
[423305632,1780044642000,-3797.27835543,0.00015628,2]
[423305631,1780044642000,-200.0,0.00015609,2]
[423305630,1780044642000,-167.19164087,0.00015604,2]
[423305627,1780044642000,-3797.27835543,0.00015563,2]
[423305633,1780044642000,-3797.27835543,0.00015649,2]
[423305636,1780044642000,-350.0,0.00015673,2]
[423305637,1780044642000,-4968.77522196,0.000157,2]
[423305635,1780044642000,-3797.27835543,0.00015668,2]
[423305634,1780044642000,-350.0,0.00015649,2]
[423305638,1780044642000,-309.0,0.000157,2]
[423305640,1780044642000,-315.0,0.000157,2]
[423305641,1780044642000,-159.41,0.00015704,2]
[423305639,1780044642000,-1000.0,0.000157,2]
[423305642,1780044642000,-151.67,0.00015704,2]
[423305643,1780044642000,-166.87,0.00015704,2]
[423305644,1780044642000,-3797.27835543,0.00015748,2]
[423305646,1780044642000,-3797.27835543,0.00015782,2]
[423305647,1780044642000,-4968.77522196,0.000158,2]
[423305645,1780044642000,-3797.27835543,0.00015774,2]
[423305649,1780044642000,-3797.27835543,0.00015813,2]
[423305674,1780044642000,-4968.77522196,0.00016,2]
[423305668,1780044642000,-3797.27835543,0.00015917,2]
[423305682,1780044642000,-151.67,0.0001618,2]
[423305713,1780044642000,-151.0,0.00016438,2]
[423305710,1780044642000,-152.0,0.00016438,2]
[423305714,1780044642000,-151.0,0.00016438,2]
[423305715,1780044642000,-151.0,0.00016438,2]
[423305718,1780044642000,-151.0,0.00016438,2]
[423305716,1780044642000,-151.0,0.00016438,2]
[423305719,1780044642000,-151.0,0.00016438,2]
[423305717,1780044642000,-151.0,0.00016438,2]
[423305720,1780044642000,-151.0,0.00016438,2]
[423305722,1780044642000,-152.0,0.00016438,2]
[423305724,1780044642000,-152.0,0.00016438,2]
[423305721,1780044642000,-151.0,0.00016438,2]
[423305725,1780044642000,-155.53,0.00016438,10]
[423305723,1780044642000,-152.0,0.00016438,2]
[423305726,1780044642000,-2718.34488606,0.00016466,2]
[423305727,1780044642000,-350.0,0.00016485,2]
[423305729,1780044642000,-3265.75,0.000165,2]
[423305730,1780044642000,-2718.34488606,0.00016521,2]
[423305731,1780044642000,-4968.77522196,0.000166,2]
[423305728,1780044642000,-4968.77522196,0.000165,2]
[423305732,1780044642000,-2000.0,0.000166,2]
[423305736,1780044642000,-151.67,0.00016656,2]
[423305733,1780044642000,-2718.34488606,0.00016603,2]
[423305734,1780044642000,-159.41,0.00016656,2]
[423305737,1780044642000,-166.87,0.00016656,2]
[423305739,1780044642000,-2718.34488606,0.00016658,2]
[423305680,1780044642000,-3797.27835543,0.00016169,2]
[423305712,1780044642000,-152.0,0.00016438,2]
[423305711,1780044642000,-152.0,0.00016438,2]
[423305669,1780044642000,-3797.27835543,0.00015919,2]
[423305708,1780044642000,-152.0,0.00016438,2]
[423305681,1780044642000,-159.41,0.0001618,2]
[423305683,1780044642000,-166.87,0.0001618,2]
[423305688,1780044642000,-3000.0,0.0001626,2]
[423305687,1780044642000,-736.0,0.00016247,2]
[423305685,1780044642000,-169.465949,0.0001623,2]
[423305686,1780044642000,-3789.0,0.00016233,5]
[423305709,1780044642000,-152.0,0.00016438,2]
[423305689,1780044642000,-3797.27835543,0.00016272,2]
[423305690,1780044642000,-172.7,0.00016275,2]
[423305692,1780044642000,-3797.27835543,0.00016288,2]
[423305693,1780044642000,-4968.77522196,0.000163,2]
[423305694,1780044642000,-200.0,0.0001634,2]
[423305695,1780044642000,-2718.34488606,0.00016411,2]
[423305684,1780044642000,-4968.77522196,0.000162,2]
[423305697,1780044642000,-500.0,0.00016438,2]
[423305704,1780044642000,-500.0,0.00016438,2]
[423305706,1780044642000,-152.0,0.00016438,2]
[423305707,1780044642000,-152.0,0.00016438,2]
[423305691,1780044642000,-3797.27835543,0.0001628,2]
[423305703,1780044642000,-500.0,0.00016438,2]
[423305705,1780044642000,-501.27069188,0.00016438,2]
[423305702,1780044642000,-500.0,0.00016438,2]
[423305700,1780044642000,-500.0,0.00016438,2]
[423305699,1780044642000,-500.0,0.00016438,2]
[423305698,1780044642000,-500.0,0.00016438,2]
[423305696,1780044642000,-500.0,0.00016438,2]
[423305701,1780044642000,-500.0,0.00016438,2]
[423305785,1780044643000,-163.61,0.000178,2]
[423305784,1780044643000,-403.0,0.000177,5]
[423305783,1780044643000,-151.0,0.00017682,2]
[423305781,1780044643000,-150.199,0.00017682,2]
[423305771,1780044643000,-151.67,0.00017608,2]
[423305778,1780044643000,-298.951,0.00017682,2]
[423305776,1780044643000,-150.0,0.00017682,2]
[423305775,1780044643000,-1252.0,0.00017664,2]
[423305773,1780044643000,-3000.0,0.0001763,7]
[423305782,1780044643000,-150.281,0.00017682,2]
[423305780,1780044643000,-150.0,0.00017682,2]
[423305786,1780044643000,-3265.75,0.000178,2]
[423305796,1780044643000,-500.0,0.00018,7]
[423305792,1780044643000,-4251.79675852,0.0001789,2]
[423305790,1780044643000,-1124.0,0.00017873,2]
[423305791,1780044643000,-1089.73064737,0.0001789,2]
[423305787,1780044643000,-388.08100701,0.000178,2]
[423305793,1780044643000,-166.66,0.00017903,2]
[423305794,1780044643000,-1117.84015556,0.00018,2]
[423305797,1780044643000,-500.0,0.00018,7]
[423305795,1780044643000,-1173.77768977,0.00018,2]
[423305798,1780044643000,-500.0,0.00018,7]
[423305801,1780044643000,-500.0,0.00018,7]
[423305799,1780044643000,-500.0,0.00018,7]
[423305772,1780044643000,-166.87,0.00017608,2]
[423305789,1780044643000,-2000.0,0.00017825,2]
[423305770,1780044643000,-159.41,0.00017608,2]
[423305756,1780044643000,-151.67,0.00017132,2]
[423305768,1780044643000,-4491.87,0.00017572,2]
[423305740,1780044643000,-2718.34488606,0.0001674,2]
[423305741,1780044643000,-2718.34488606,0.00016795,2]
[423305743,1780044643000,-200.0,0.00016834,3]
[423305744,1780044643000,-3292.0,0.00016841,2]
[423305742,1780044643000,-388.08253939,0.0001681,2]
[423305745,1780044643000,-2718.34488606,0.00016849,2]
[423305746,1780044643000,-2000.0,0.000169,2]
[423305747,1780044643000,-2718.34488606,0.00016932,2]
[423305748,1780044643000,-478.0,0.00016951,2]
[423305749,1780044643000,-1124.0,0.00016979,2]
[423305751,1780044643000,-151.0,0.00017,4]
[423305752,1780044643000,-2718.34488606,0.00017068,2]
[423305769,1780044643000,-4758.5,0.00017572,2]
[423305750,1780044643000,-2718.34488606,0.00016986,2]
[423305803,1780044643000,-500.0,0.00018,7]
[423305754,1780044643000,-2718.34488606,0.00017123,2]
[423305755,1780044643000,-159.41,0.00017132,2]
[423305757,1780044643000,-166.87,0.00017132,2]
[423305759,1780044643000,-197201.42881298,0.0001718,2]
[423305758,1780044643000,-166.66,0.00017179,2]
[423305763,1780044643000,-536.0,0.0001741,2]
[423305762,1780044643000,-200.0,0.0001736,2]
[423305761,1780044643000,-167.19164087,0.00017227,2]
[423305760,1780044643000,-2000.0,0.000172,2]
[423305764,1780044643000,-2000.0,0.000175,2]
[423305766,1780044643000,-166.66,0.00017541,2]
[423305753,1780044643000,-500.0,0.00017082,7]
[423305802,1780044643000,-500.0,0.00018,7]
[423305788,1780044643000,-500.0,0.00017825,2]
[423305800,1780044643000,-500.0,0.00018,7]
[423305833,1780044643000,-500.0,0.00018,7]
[423305836,1780044643000,-500.0,0.00018,7]
[423305837,1780044643000,-500.0,0.00018,7]
[423305838,1780044643000,-509.37,0.00018,7]
[423305839,1780044643000,-500.0,0.00018,7]
[423305842,1780044643000,-500.0,0.00018,7]
[423305841,1780044643000,-500.0,0.00018,7]
[423305840,1780044643000,-500.0,0.00018,7]
[423305843,1780044643000,-500.0,0.00018,7]
[423305844,1780044643000,-500.0,0.00018,7]
[423305847,1780044643000,-500.0,0.00018,7]
[423305850,1780044643000,-500.0,0.00018,7]
[423305835,1780044643000,-500.0,0.00018,7]
[423305848,1780044643000,-500.0,0.00018,7]
[423305849,1780044643000,-500.0,0.00018,7]
[423305852,1780044643000,-500.0,0.00018,7]
[423305853,1780044643000,-500.0,0.00018,7]
[423305851,1780044643000,-500.0,0.00018,7]
[423305854,1780044643000,-500.0,0.00018,7]
[423305855,1780044643000,-500.0,0.00018,7]
[423305857,1780044643000,-500.0,0.00018,7]
[423305858,1780044643000,-500.0,0.00018,7]
[423305856,1780044643000,-500.0,0.00018,7]
[423305859,1780044643000,-500.0,0.00018,7]
[423305804,1780044643000,-500.0,0.00018,7]
[423305860,1780044643000,-500.0,0.00018,7]
[423305846,1780044643000,-500.0,0.00018,7]
[423305834,1780044643000,-500.0,0.00018,7]
[423305845,1780044643000,-500.0,0.00018,7]
[423305832,1780044643000,-500.0,0.00018,7]
[423305807,1780044643000,-500.0,0.00018,7]
[423305831,1780044643000,-500.0,0.00018,7]
[423305809,1780044643000,-500.0,0.00018,7]
[423305806,1780044643000,-500.0,0.00018,7]
[423305808,1780044643000,-500.0,0.00018,7]
[423305810,1780044643000,-500.0,0.00018,7]
[423305812,1780044643000,-500.0,0.00018,7]
[423305814,1780044643000,-500.0,0.00018,7]
[423305813,1780044643000,-500.0,0.00018,7]
[423305811,1780044643000,-500.0,0.00018,7]
[423305815,1780044643000,-500.0,0.00018,7]
[423305816,1780044643000,-500.0,0.00018,7]
[423305817,1780044643000,-500.0,0.00018,7]
[423305805,1780044643000,-500.0,0.00018,7]
[423305830,1780044643000,-500.0,0.00018,7]
[423305818,1780044643000,-500.0,0.00018,7]
[423305828,1780044643000,-500.0,0.00018,7]
[423305824,1780044643000,-500.0,0.00018,7]
[423305826,1780044643000,-500.0,0.00018,7]
[423305825,1780044643000,-500.0,0.00018,7]
[423305827,1780044643000,-500.0,0.00018,7]
[423305829,1780044643000,-500.0,0.00018,7]
[423305822,1780044643000,-500.0,0.00018,7]
[423305819,1780044643000,-500.0,0.00018,7]
[423305820,1780044643000,-500.0,0.00018,7]
[423305821,1780044643000,-516.58,0.00018,7]
[423305823,1780044643000,-500.0,0.00018,7]
[423305901,1780044644000,-500.0,0.00018,7]
[423305900,1780044644000,-500.0,0.00018,7]
[423305897,1780044644000,-500.0,0.00018,7]
[423305898,1780044644000,-500.0,0.00018,7]
[423305895,1780044644000,-500.0,0.00018,7]
[423305894,1780044644000,-500.0,0.00018,7]
[423305892,1780044644000,-500.0,0.00018,7]
[423305893,1780044644000,-500.0,0.00018,7]
[423305899,1780044644000,-500.0,0.00018,7]
[423305891,1780044644000,-500.0,0.00018,7]
[423305896,1780044644000,-500.0,0.00018,7]
[423305917,1780044644000,-500.0,0.00018,7]
[423305909,1780044644000,-500.0,0.00018,7]
[423305907,1780044644000,-500.0,0.00018,7]
[423305904,1780044644000,-500.0,0.00018,7]
[423305906,1780044644000,-500.0,0.00018,7]
[423305908,1780044644000,-500.0,0.00018,7]
[423305905,1780044644000,-500.0,0.00018,7]
[423305911,1780044644000,-500.0,0.00018,7]
[423305910,1780044644000,-500.0,0.00018,7]
[423305912,1780044644000,-500.0,0.00018,7]
[423305915,1780044644000,-500.0,0.00018,7]
[423305913,1780044644000,-500.0,0.00018,7]
[423305914,1780044644000,-631.24,0.00018,7]
[423305887,1780044644000,-500.0,0.00018,7]
[423305903,1780044644000,-500.0,0.00018,7]
[423305889,1780044644000,-500.0,0.00018,7]
[423305861,1780044644000,-500.0,0.00018,7]
[423305888,1780044644000,-500.0,0.00018,7]
[423305918,1780044644000,-500.0,0.00018,7]
[423305862,1780044644000,-500.0,0.00018,7]
[423305863,1780044644000,-500.0,0.00018,7]
[423305866,1780044644000,-8068.6319756,0.00018,2]
[423305867,1780044644000,-500.0,0.00018,7]
[423305864,1780044644000,-500.0,0.00018,7]
[423305865,1780044644000,-371.99,0.00018,7]
[423305868,1780044644000,-500.0,0.00018,7]
[423305870,1780044644000,-500.0,0.00018,7]
[423305871,1780044644000,-500.0,0.00018,7]
[423305874,1780044644000,-500.0,0.00018,7]
[423305872,1780044644000,-500.0,0.00018,7]
[423305890,1780044644000,-500.0,0.00018,7]
[423305873,1780044644000,-500.0,0.00018,7]
[423305875,1780044644000,-500.0,0.00018,7]
[423305877,1780044644000,-500.0,0.00018,7]
[423305876,1780044644000,-500.0,0.00018,7]
[423305878,1780044644000,-500.0,0.00018,7]
[423305879,1780044644000,-500.0,0.00018,7]
[423305880,1780044644000,-500.0,0.00018,7]
[423305883,1780044644000,-500.0,0.00018,7]
[423305881,1780044644000,-500.0,0.00018,7]
[423305886,1780044644000,-500.0,0.00018,7]
[423305885,1780044644000,-500.0,0.00018,7]
[423305882,1780044644000,-500.0,0.00018,7]
[423305884,1780044644000,-500.0,0.00018,7]
[423305869,1780044644000,-500.0,0.00018,7]
[423305916,1780044644000,-500.0,0.00018,7]
[423305902,1780044644000,-500.0,0.00018,7]
[423305920,1780044644000,-500.0,0.00018,7]
[423305952,1780044644000,-500.0,0.00018084,2]
[423305955,1780044644000,-230.31,0.00018084,2]
[423305956,1780044644000,-4253.01,0.00018084,2]
[423305957,1780044644000,-969.29,0.00018084,2]
[423305954,1780044644000,-2000.0,0.00018084,2]
[423305953,1780044644000,-543.91,0.00018084,2]
[423305958,1780044644000,-159.41,0.00018084,2]
[423305959,1780044644000,-151.67,0.00018084,2]
[423305962,1780044644000,-2000.0,0.000181,2]
[423305961,1780044644000,-249.29,0.00018084,2]
[423305960,1780044644000,-166.87,0.00018084,2]
[423305964,1780044644000,-1173.77768977,0.000182,2]
[423305951,1780044644000,-1000.0,0.00018084,2]
[423305963,1780044644000,-1117.84015556,0.000182,2]
[423305968,1780044644000,-1173.77768977,0.000184,2]
[423305967,1780044644000,-1117.84015556,0.000184,2]
[423305966,1780044644000,-166.66,0.00018264,2]
[423305969,1780044644000,-2258.0,0.000184,2]
[423305971,1780044644000,-1117.84015556,0.000185,2]
[423305970,1780044644000,-500.0,0.00018411,2]
[423305972,1780044644000,-1173.77768977,0.000185,2]
[423305973,1780044644000,-4609.0,0.00018525,2]
[423305975,1780044644000,-473.64,0.00018625,2]
[423305976,1780044644000,-166.66,0.00018626,2]
[423305977,1780044644000,-166.84,0.00018626,2]
[423305974,1780044644000,-24246.56333146,0.0001862,2]
[423305965,1780044644000,-811.8,0.00018228,2]
[423305950,1780044644000,-811.97,0.00018084,2]
[423305919,1780044644000,-500.0,0.00018,7]
[423305949,1780044644000,-1286.41,0.00018084,2]
[423305948,1780044644000,-985.84,0.00018084,2]
[423305921,1780044644000,-500.0,0.00018,7]
[423305922,1780044644000,-500.0,0.00018,7]
[423305923,1780044644000,-500.0,0.00018,7]
[423305927,1780044644000,-500.0,0.00018,7]
[423305925,1780044644000,-500.0,0.00018,7]
[423305926,1780044644000,-500.0,0.00018,7]
[423305924,1780044644000,-500.0,0.00018,7]
[423305931,1780044644000,-500.0,0.00018,7]
[423305932,1780044644000,-500.0,0.00018,7]
[423305934,1780044644000,-350.0,0.00018,2]
[423305930,1780044644000,-500.0,0.00018,7]
[423305929,1780044644000,-500.0,0.00018,7]
[423305928,1780044644000,-500.0,0.00018,7]
[423305938,1780044644000,-640.0,0.0001805,2]
[423305933,1780044644000,-500.0,0.00018,7]
[423305946,1780044644000,-150.0,0.00018084,2]
[423305945,1780044644000,-500.0,0.00018084,2]
[423305944,1780044644000,-200.0,0.00018084,2]
[423305942,1780044644000,-173.72,0.00018084,2]
[423305943,1780044644000,-60749.38,0.00018084,2]
[423305940,1780044644000,-172.7,0.00018084,2]
[423305947,1780044644000,-1852.42,0.00018084,2]
[423305936,1780044644000,-200.0,0.00018,2]
[423305937,1780044644000,-2524.0,0.0001805,2]
[423305935,1780044644000,-151.0,0.00018,4]
[423305941,1780044644000,-1023.59,0.00018084,2]
[423306018,1780044645000,-640.0,0.0001905,2]
[423306017,1780044645000,-2524.0,0.0001905,2]
[423306016,1780044645000,-473.64,0.0001904,2]
[423306015,1780044645000,-2331.20871819,0.00019,2]
[423306011,1780044645000,-11282.19412276,0.00019,2]